fUSD/lending_fUSD_20240426
["ID","MTS","AMOUNT","RATE_DAILY","PERIOD"]
[323643627,1714146708490,-2385.902375,0.00013699,2]
[323643628,1714146708500,-910.362462,0.00013699,2]
[323643629,1714146708511,-2429.554249,0.00013699,2]
[323643630,1714146708520,-2385.902375,0.00013699,2]
[323643631,1714146708529,-754.163296,0.00013699,2]
[323643632,1714146708540,-2385.902375,0.00013699,2]
[323643633,1714146708550,-754.163296,0.00013699,2]
[323643634,1714146708560,-910.362462,0.00013699,2]
[323643635,1714146708571,-910.362462,0.00013699,2]
[323643636,1714146708582,-151.0,0.00013699,2]
[323643637,1714146708592,-712.601466,0.00013699,2]
[323643638,1714146708601,-712.601466,0.00013699,2]
[323643639,1714146708611,-712.601466,0.00013699,2]
[323643640,1714146708621,-712.601466,0.00013699,2]
[323643641,1714146708631,-151.0,0.00013699,2]
[323643642,1714146708640,-151.0,0.00013699,2]
[323643643,1714146708651,-571.763094,0.00013699,2]
[323643644,1714146708661,-571.763094,0.00013699,2]
[323643645,1714146708671,-151.0,0.00013699,2]
[323643646,1714146708681,-151.0,0.00013699,2]
[323643647,1714146708691,-151.0,0.00013699,2]
[323643648,1714146708701,-151.0,0.00013699,2]
[323643649,1714146708711,-571.763094,0.00013699,2]
[323643650,1714146708720,-571.763094,0.00013699,2]
[323643651,1714146708732,-906.524082,0.00013699,2]
[323643652,1714146708741,-418.374298,0.00013699,2]
[323643653,1714146708751,-418.374298,0.00013699,2]
[323643654,1714146708765,-906.524082,0.00013699,2]
[323643655,1714146708775,-1267.477174,0.00013699,2]
[323643656,1714146708785,-906.524082,0.00013699,2]
[323643657,1714146708795,-906.524082,0.00013699,2]
[323643658,1714146708806,-1267.477174,0.00013699,2]
[323643659,1714146708815,-418.374298,0.00013699,2]
[323643660,1714146708825,-418.374298,0.00013699,2]
[323643661,1714146708836,-151.0,0.00013699,2]
[323643662,1714146708845,-151.0,0.00013699,2]
[323643663,1714146708855,-253.70894,0.00013699,2]
[323643664,1714146708865,-253.70894,0.00013699,2]
[323643665,1714146708875,-185.514269,0.00013699,2]
[323643666,1714146708884,-253.70894,0.00013699,2]
[323643667,1714146708894,-253.70894,0.00013699,2]
[323643668,1714146708903,-158.569532,0.00013699,2]
[323643669,1714146708913,-800.444694,0.00013699,2]
[323643670,1714146708922,-800.444694,0.00013699,2]
[323643671,1714146708932,-800.444694,0.00013699,2]
[323643672,1714146708941,-800.444694,0.00013699,2]
[323643673,1714146708952,-500.0,0.00013699,2]
[323643674,1714146708961,-151.0,0.00013699,2]
[323643675,1714146708971,-151.0,0.00013699,2]
[323643676,1714146708984,-1000.0,0.00013699,2]
[323643677,1714146708994,-151.0,0.00013699,2]
[323643678,1714146709004,-1000.0,0.00013699,2]
[323643679,1714146709014,-1000.0,0.00013699,2]
[323643680,1714146709023,-151.0,0.00013699,2]
[323643681,1714146709033,-1000.0,0.00013699,2]
[323643682,1714146709043,-1000.0,0.00013699,2]
[323643683,1714146709053,-1000.0,0.00013699,2]
[323643684,1714146709063,-1000.0,0.00013699,2]
[323643685,1714146709072,-1000.0,0.00013699,2]
[323643686,1714146709082,-1000.0,0.00013699,2]
[323643687,1714146709092,-1000.0,0.00013699,2]
[323643688,1714146709102,-1000.0,0.00013699,2]
[323643689,1714146709112,-1000.0,0.00013699,2]
[323643690,1714146709122,-1000.0,0.00013699,2]
[323643691,1714146709131,-1000.0,0.00013699,2]
[323643692,1714146709141,-1000.0,0.00013699,2]
[323643693,1714146709152,-1000.0,0.00013699,2]
[323643694,1714146709161,-365.94415,0.00013699,2]
[323643695,1714146709172,-365.94415,0.00013699,2]
[323643696,1714146709182,-365.94415,0.00013699,2]
[323643697,1714146709191,-365.94415,0.00013699,2]
[323643698,1714146709201,-250.0,0.00013699,2]
[323643699,1714146709211,-151.0,0.00013699,2]
[323643700,1714146709221,-172.626666,0.00013699,2]
[323643701,1714146709234,-2705.047166,0.00013699,2]
[323643702,1714146709244,-2705.047166,0.00013699,2]
[323643703,1714146709254,-1722.960204,0.00013699,2]
[323643704,1714146709265,-1722.960204,0.00013699,2]
[323643705,1714146709275,-2705.047166,0.00013699,2]
[323643706,1714146709285,-2705.047166,0.00013699,2]
[323643707,1714146709295,-565.558587,0.00013699,2]
[323643708,1714146709305,-1722.960204,0.00013699,2]
[323643709,1714146709315,-565.558587,0.00013699,2]
[323643710,1714146709325,-1722.960204,0.00013699,2]
[323643711,1714146709335,-565.558587,0.00013699,2]
[323643712,1714146709346,-565.558587,0.00013699,2]
[323643713,1714146709355,-172.49252,0.00013699,2]
[323643714,1714146709366,-172.49252,0.00013699,2]
[323643715,1714146709376,-172.49252,0.00013699,2]
[323643716,1714146709386,-172.49252,0.00013699,2]
[323643717,1714146709397,-214.300933,0.00013699,2]
[323643718,1714146709408,-2038.285751,0.00013699,2]
[323643719,1714146709419,-2038.285751,0.00013699,2]
[323643720,1714146709430,-2582.763885,0.00013699,2]
[323643721,1714146709441,-2582.763885,0.00013699,2]
[323643722,1714146709451,-2038.285751,0.00013699,2]
[323643723,1714146709461,-2038.285751,0.00013699,2]
[323643724,1714146709476,-1000.0,0.00013699,2]
[323643725,1714146709491,-1000.0,0.00013699,2]
[323643726,1714146709501,-1000.0,0.00013699,2]
[323643727,1714146709511,-1000.0,0.00013699,2]
[323643728,1714146709520,-1000.0,0.00013699,2]
[323643729,1714146709530,-2582.763885,0.00013699,2]
[323643730,1714146709540,-1000.0,0.00013699,2]
[323643731,1714146709552,-2582.763885,0.00013699,2]
[323643732,1714146709563,-1000.0,0.00013699,2]
[323643733,1714146709573,-1000.0,0.00013699,2]
[323643734,1714146709584,-1000.0,0.00013699,2]
[323643735,1714146709595,-178.0,0.00013699,2]
[323643736,1714146709605,-302.45782,0.00013699,2]
[323643737,1714146709614,-302.45782,0.00013699,2]
[323643738,1714146709624,-302.45782,0.00013699,2]
[323643739,1714146709633,-2790.428779,0.00013699,2]
[323643740,1714146709644,-302.45782,0.00013699,2]
[323643741,1714146709653,-2790.428779,0.00013699,2]
[323643742,1714146709663,-4167.341134,0.00013699,2]
[323643743,1714146709673,-4167.341134,0.00013699,2]
[323643744,1714146709682,-151.0,0.00013699,2]
[323643745,1714146709692,-151.0,0.00013699,2]
[323643746,1714146709702,-4167.341134,0.00013699,2]
[323643747,1714146709712,-4167.341134,0.00013699,2]
[323643748,1714146709721,-151.0,0.00013699,2]
[323643749,1714146709733,-151.0,0.00013699,2]
[323643750,1714146709743,-2790.428779,0.00013699,2]
[323643751,1714146709752,-2790.428779,0.00013699,2]
[323643752,1714146709762,-154.709088,0.00013699,2]
[323643753,1714146709772,-154.709088,0.00013699,2]
[323643754,1714146709781,-10000.0,0.00013699,2]
[323643755,1714146709792,-10000.0,0.00013699,2]
[323643756,1714146709802,-10000.0,0.00013699,2]
[323643757,1714146709812,-154.709088,0.00013699,2]
[323643758,1714146709821,-154.709088,0.00013699,2]
[323643759,1714146709831,-10000.0,0.00013699,2]
[323643760,1714146709840,-10000.0,0.00013699,2]
[323643761,1714146709850,-10000.0,0.00013699,2]
[323643762,1714146709859,-6212.535328,0.00013699,2]
[323643763,1714146709869,-488.609963,0.00013699,2]
[323643764,1714146709879,-488.609963,0.00013699,2]
[323643765,1714146709889,-1000.0,0.00013699,2]
[323643766,1714146709899,-488.609963,0.00013699,2]
[323643767,1714146709909,-488.609963,0.00013699,2]
[323643768,1714146709919,-628.870181,0.00013699,2]
[323643769,1714146709928,-628.870181,0.00013699,2]
[323643770,1714146709938,-151.0,0.00013699,2]
[323643771,1714146709947,-151.0,0.00013699,2]
[323643772,1714146709957,-628.870181,0.00013699,2]
[323643773,1714146709967,-628.870181,0.00013699,2]
[323643774,1714146710080,-2304.7,0.00013699,2]
[323643775,1714146710091,-211.615917,0.00013699,2]
[323643776,1714146710100,-211.615917,0.00013699,2]
[323643777,1714146710110,-211.615917,0.00013699,2]
[323643778,1714146710120,-211.615917,0.00013699,2]
[323643779,1714146710130,-282.778203,0.00013699,2]
[323643780,1714146710140,-282.778203,0.00013699,2]
[323643781,1714146710151,-205.312169,0.00013699,2]
[323643782,1714146710161,-205.312169,0.00013699,2]
[323643783,1714146710171,-205.312169,0.00013699,2]
[323643784,1714146710180,-205.312175,0.00013699,2]
[323643785,1714146710190,-151.0,0.00013699,2]
[323643786,1714146710200,-151.0,0.00013699,2]
[323643787,1714146710211,-219.942956,0.00013699,2]
[323643788,1714146710222,-2055.41,0.000137,2]
[323643789,1714146710234,-2055.41,0.000137,2]
[323643790,1714146710243,-2055.41,0.000137,2]
[323643791,1714146710253,-2055.41,0.000137,2]
[323643792,1714146710263,-391.59,0.00013726,2]
[323643793,1714146710274,-644.42,0.00013733,2]
[323643794,1714146710285,-500.0,0.00013734,2]
[323643795,1714146710297,-500.0,0.00013734,2]
[323643796,1714146710307,-500.0,0.00013734,2]
[323643797,1714146710319,-500.0,0.00013734,2]
[323643798,1714146710330,-500.0,0.00013734,2]
[323643799,1714146710340,-500.0,0.00013734,2]
[323643800,1714146710351,-500.0,0.00013734,2]
[323643801,1714146710361,-500.0,0.00013734,2]
[323643802,1714146710371,-500.0,0.00013734,2]
[323643803,1714146710382,-12541.59,0.00013734,2]
[323643804,1714146710393,-3067.93,0.00013734,2]
[323643805,1714146710403,-683.29,0.00013734,2]
[323643806,1714146710414,-532.8,0.00013734,2]
[323643807,1714146710425,-1060.15,0.00013734,2]
[323643808,1714146710434,-4294.42,0.00013734,2]
[323643809,1714146710444,-500.0,0.00013734,2]
[323643810,1714146710455,-164.38530258,0.00013734,2]
[323643811,1714146710466,-539.52,0.00013734,2]
[323643812,1714146710477,-500.0,0.00013734,2]
[323643813,1714146710489,-2839.5,0.00013734,2]
[323643814,1714146710500,-500.0,0.00013734,2]
[323643815,1714146710510,-500.0,0.00013734,2]
[323643816,1714146710521,-594.61,0.00013734,2]
[323643817,1714146710531,-786.04,0.00013734,2]
[323643818,1714146710540,-500.0,0.00013734,2]
[323643819,1714146710550,-633.46,0.00013734,2]
[323643820,1714146710561,-2454.05,0.00013734,2]
[323643821,1714146710570,-395.50035441,0.00013734,2]
[323643822,1714146710580,-500.0,0.00013734,2]
[323643823,1714146710590,-556.65,0.00013734,2]
[323643824,1714146710600,-783.76,0.00013734,2]
[323643825,1714146710610,-603.38,0.00013734,2]
[323643826,1714146710619,-1769.72,0.00013734,2]
[323643827,1714146710629,-500.0,0.00013734,2]
[323643828,1714146710639,-541.56,0.00013734,2]
[323643829,1714146710649,-2540.34,0.00013734,2]
[323643830,1714146710658,-591.93,0.00013734,2]
[323643831,1714146710667,-545.47,0.00013734,2]
[323643832,1714146710676,-500.0,0.00013734,2]
[323643833,1714146710687,-500.0,0.00013734,2]
[323643834,1714146710697,-500.0,0.00013734,2]
[323643835,1714146710707,-4729.62,0.00013734,2]
[323643836,1714146710716,-512.25025415,0.00013734,2]
[323643837,1714146710726,-1995.34,0.00013734,2]
[323643838,1714146710737,-586.34,0.00013734,2]
[323643839,1714146710746,-500.0,0.00013734,2]
[323643840,1714146710755,-500.0,0.00013734,2]
[323643841,1714146710765,-2124.66,0.00013734,2]
[323643842,1714146710775,-3161.41,0.00013734,2]
[323643843,1714146710785,-1952.38,0.00013734,2]
[323643844,1714146710794,-2807.16,0.00013734,2]
[323643845,1714146710804,-638.27,0.00013734,2]
[323643846,1714146710815,-500.0,0.00013734,2]
[323643847,1714146710825,-3223.34,0.00013734,2]
[323643848,1714146710835,-680.69,0.00013734,2]
[323643849,1714146710844,-500.0,0.00013734,2]
[323643850,1714146710854,-2296.89,0.00013734,2]
[323643851,1714146710864,-500.0,0.00013734,2]
[323643852,1714146710874,-500.0,0.00013734,2]
[323643853,1714146710884,-2368.71,0.00013734,2]
[323643854,1714146710894,-3149.73,0.00013734,2]
[323643855,1714146710903,-500.0,0.00013734,2]
[323643856,1714146710913,-500.0,0.00013734,2]
[323643857,1714146710923,-7711.79,0.00013734,2]
[323643858,1714146710933,-712.4,0.00013734,2]
[323643859,1714146710942,-628.40276414,0.00013734,2]
[323643860,1714146710953,-1361.6,0.00013734,2]
[323643861,1714146710963,-743.13,0.00013734,2]
[323643862,1714146710974,-430.49249687,0.00013734,2]
[323643863,1714146710984,-2752.21,0.00013734,2]
[323643864,1714146710994,-1414.54,0.00013734,2]
[323643865,1714146711004,-3239.13,0.00013734,2]
[323643866,1714146711014,-1163.36,0.00013734,2]
[323643867,1714146711024,-770.5,0.00013734,2]
[323643868,1714146711035,-6880.92,0.00013734,2]
[323643869,1714146711046,-525.52,0.00013734,2]
[323643870,1714146711057,-2621.73,0.00013734,2]
[323643871,1714146711068,-500.0,0.00013734,2]
[323643872,1714146711078,-2133.22,0.00013734,2]
[323643873,1714146711089,-653.66,0.00013734,2]
[323643874,1714146711101,-1077.73,0.00013734,2]
[323643875,1714146711111,-580.16,0.00013734,2]
[323643876,1714146711121,-4821.94,0.00013734,2]
[323643877,1714146711131,-2598.62,0.00013734,2]
[323643878,1714146711142,-500.0,0.00013734,2]
[323643879,1714146711152,-1060.82,0.00013734,2]
[323643880,1714146711162,-500.0,0.00013734,2]
[323643881,1714146711172,-584.82,0.00013734,2]
[323643882,1714146711184,-1830.64,0.00013734,2]
[323643883,1714146711194,-500.0,0.00013734,2]
[323643884,1714146711204,-500.0,0.00013734,2]
[323643885,1714146711213,-1584.6,0.00013734,2]
[323643886,1714146711223,-1347.81,0.00013734,2]
[323643887,1714146711234,-500.0,0.00013734,2]
[323643888,1714146711244,-500.0,0.00013734,2]
[323643889,1714146711254,-5879.51,0.00013734,2]
[323643890,1714146711265,-6325.77,0.00013734,2]
[323643891,1714146711274,-7205.06,0.00013734,2]
[323643892,1714146711284,-1130.16,0.00013734,2]
[323643893,1714146711295,-4293.14,0.00013734,2]
[323643894,1714146711305,-500.0,0.00013734,2]
[323643895,1714146711315,-4451.04,0.00013734,2]
[323643896,1714146711327,-813.86,0.00013734,2]
[323643897,1714146711337,-500.0,0.00013734,2]
[323643898,1714146711347,-500.0,0.00013735,2]
[323643899,1714146711358,-365.96927254,0.00013735,2]
[323643900,1714146711368,-500.0,0.00013735,2]
[323643901,1714146711378,-206.58393257,0.00013735,2]
[323643902,1714146711388,-642.0541159,0.00013735,2]
[323643903,1714146711400,-500.0,0.00013735,2]
[323643904,1714146711410,-586.06,0.00013735,2]
[323643905,1714146711421,-545.1322501,0.00013735,2]
[323643906,1714146711431,-551.67,0.00013735,2]
[323643907,1714146711441,-500.0,0.00013735,2]
[323643908,1714146711451,-536.41,0.00013735,2]
[323643909,1714146711461,-500.0,0.00013735,2]
[323643910,1714146711471,-500.02,0.00013735,2]
[323643911,1714146711485,-890.43,0.00013735,2]
[323643912,1714146711496,-899.93,0.00013735,2]
[323643913,1714146711507,-500.0,0.00013735,2]
[323643914,1714146711518,-500.0,0.00013735,2]
[323643915,1714146711527,-740.2,0.00013735,2]
[323643916,1714146711538,-669.41,0.00013735,2]
[323643917,1714146711548,-714.54,0.00013735,2]
[323643918,1714146711558,-504.15893976,0.00013735,2]
[323643919,1714146711570,-703.44,0.00013735,2]
[323643920,1714146711581,-500.0,0.00013735,2]
[323643921,1714146711591,-500.0,0.00013735,2]
[323643922,1714146711602,-1007.49,0.00013735,2]
[323643923,1714146711612,-673.51,0.00013735,2]
[323643924,1714146711624,-500.0,0.00013735,2]
[323643925,1714146711635,-500.0,0.00013735,2]
[323643926,1714146711645,-816.79,0.00013735,2]
[323643927,1714146711655,-500.0,0.00013735,2]
[323643928,1714146711666,-787.38,0.00013735,2]
[323643929,1714146711676,-500.0,0.00013735,2]
[323643930,1714146711686,-976.83,0.00013735,2]
[323643931,1714146711695,-636.03504799,0.00013735,2]
[323643932,1714146711705,-1809.25,0.00013735,2]
[323643933,1714146711715,-2201.55,0.00013735,2]
[323643934,1714146711724,-500.0,0.00013735,2]
[323643935,1714146711734,-500.0,0.00013735,2]
[323643936,1714146711743,-2475.02,0.00013735,2]
[323643937,1714146711754,-1021.24,0.00013735,2]
[323643938,1714146711763,-906.43,0.00013735,2]
[323643939,1714146711773,-500.0,0.00013735,2]
[323643940,1714146711783,-500.0,0.00013735,2]
[323643941,1714146711794,-1082.39,0.00013735,2]
[323643942,1714146711804,-1734.07,0.00013735,2]
[323643943,1714146711815,-507.5,0.00013735,2]
[323643944,1714146711825,-500.0,0.00013735,2]
[323643945,1714146711835,-500.0,0.00013735,2]
[323643946,1714146711845,-1366.4,0.00013735,2]
[323643947,1714146711854,-500.0,0.00013735,2]
[323643948,1714146711864,-1005.72,0.00013735,2]
[323643949,1714146711873,-500.0,0.00013735,2]
[323643950,1714146711883,-500.0,0.00013735,2]
[323643951,1714146711892,-1013.72,0.00013735,2]
[323643952,1714146711902,-988.03,0.00013735,2]
[323643953,1714146711911,-951.02,0.00013735,2]
[323643954,1714146711921,-882.88,0.00013735,2]
[323643955,1714146711931,-513.26,0.00013735,2]
[323643956,1714146711940,-1725.66,0.00013735,2]
[323643957,1714146711950,-500.0,0.00013735,2]
[323643958,1714146711960,-500.0,0.00013735,2]
[323643959,1714146711970,-1527.71,0.00013735,2]
[323643960,1714146711981,-682.76,0.00013735,2]
[323643961,1714146711991,-500.0,0.00013735,2]
[323643962,1714146712001,-522.14,0.00013735,2]
[323643963,1714146712010,-1626.54,0.00013735,2]
[323643964,1714146712020,-511.7,0.00013735,2]
[323643965,1714146712030,-345.46,0.00013735,2]
[323643966,1714146712040,-500.0,0.00013735,2]
[323643967,1714146712051,-500.0,0.00013735,2]
[323643968,1714146712060,-500.0,0.00013735,2]
[323643969,1714146712070,-500.0,0.00013735,2]
[323643970,1714146712080,-387.06,0.00013735,2]
[323643971,1714146712090,-1328.17,0.00013735,2]
[323643972,1714146712101,-500.0,0.00013735,2]
[323643973,1714146712111,-551.92,0.00013735,2]
[323643974,1714146712122,-500.0,0.00013735,2]
[323643975,1714146712132,-581.23,0.00013735,2]
[323643976,1714146712142,-2126.22,0.00013735,2]
[323643977,1714146712152,-500.0,0.00013735,2]
[323643978,1714146712163,-1925.01,0.00013735,2]
[323643979,1714146712173,-500.0,0.00013735,2]
[323643980,1714146712183,-544.69,0.00013735,2]
[323643981,1714146712193,-500.0,0.00013735,2]
[323643982,1714146712203,-1631.66,0.00013735,2]
[323643983,1714146712213,-500.0,0.00013735,2]
[323643984,1714146712224,-500.0,0.00013735,2]
[323643985,1714146712235,-1881.98,0.00013735,2]
[323643986,1714146712245,-500.0,0.00013735,2]
[323643987,1714146712256,-597.71,0.00013735,2]
[323643988,1714146712266,-2029.94,0.00013735,2]
[323643989,1714146712276,-1848.32,0.00013735,2]
[323643990,1714146712286,-434.35,0.00013735,2]
[323643991,1714146712296,-1370.68,0.00013735,2]
[323643992,1714146712305,-1912.0,0.00013735,2]
[323643993,1714146712315,-661.25,0.00013735,2]
[323643994,1714146712325,-919.44,0.00013735,2]
[323643995,1714146712335,-500.0,0.00013735,2]
[323643996,1714146712345,-638.29,0.00013735,2]
[323643997,1714146712355,-1171.2,0.00013735,2]
[323643998,1714146712365,-5559.23,0.00013735,2]
[323643999,1714146712375,-500.0,0.00013735,2]
[323644000,1714146712385,-2143.51,0.00013735,2]
[323644001,1714146712395,-7686.77,0.00013735,2]
[323644002,1714146712406,-500.0,0.00013735,2]
[323644003,1714146712415,-500.0,0.00013735,2]
[323644004,1714146712426,-2569.43,0.00013735,2]
[323644005,1714146712435,-2739.23,0.00013735,2]
[323644006,1714146712445,-500.0,0.00013735,2]
[323644007,1714146712455,-500.0,0.00013735,2]
[323644008,1714146712466,-1792.37,0.00013735,2]
[323644009,1714146712476,-1653.79,0.00013735,2]
[323644010,1714146712489,-625.93,0.00013735,2]
[323644011,1714146712498,-500.0,0.00013735,2]
[323644012,1714146712507,-500.0,0.00013735,2]
[323644013,1714146712518,-1471.8,0.00013735,2]
[323644014,1714146712530,-1070.1,0.00013735,2]
[323644015,1714146712539,-4037.45,0.00013735,2]
[323644016,1714146712549,-2650.97,0.00013735,2]
[323644017,1714146712560,-598.19,0.00013735,2]
[323644018,1714146712570,-500.0,0.00013735,2]
[323644019,1714146712580,-4448.95,0.00013735,2]
[323644020,1714146712590,-2695.07,0.00013735,2]
[323644021,1714146712599,-8545.82,0.00013735,2]
[323644022,1714146712610,-591.25,0.00013735,2]
[323644023,1714146712619,-2042.61,0.00013735,2]
[323644024,1714146712629,-500.0,0.00013735,2]
[323644025,1714146712639,-693.98,0.00013735,2]
[323644026,1714146712649,-3854.6,0.00013735,2]
[323644027,1714146712659,-1203.03,0.00013735,2]
[323644028,1714146712668,-1971.4,0.00013735,2]
[323644029,1714146712679,-500.0,0.00013735,2]
[323644030,1714146712689,-540.52,0.00013735,2]
[323644031,1714146712699,-1968.53,0.00013735,2]
[323644032,1714146712708,-500.0,0.00013735,2]
[323644033,1714146712718,-1494.75,0.00013735,2]
[323644034,1714146712727,-3141.48,0.00013735,2]
[323644035,1714146712739,-2509.36,0.00013735,2]
[323644036,1714146712749,-500.92,0.00013735,2]
[323644037,1714146712759,-13276.39,0.00013735,2]
[323644038,1714146712769,-8273.37,0.00013735,2]
[323644039,1714146712780,-742.66,0.00013735,2]
[323644040,1714146712790,-500.0,0.00013735,2]
[323644041,1714146712800,-1606.25,0.00013735,2]
[323644042,1714146712811,-1129.91,0.00013735,2]
[323644043,1714146712822,-500.0,0.00013735,2]
[323644044,1714146712832,-500.0,0.00013735,2]
[323644045,1714146712843,-1918.48,0.00013735,2]
[323644046,1714146712853,-2088.24,0.00013735,2]
[323644047,1714146712863,-500.0,0.00013735,2]
[323644048,1714146712873,-500.0,0.00013735,2]
[323644049,1714146712883,-1027.75,0.00013735,2]
[323644050,1714146712893,-500.0,0.00013735,2]
[323644051,1714146712905,-1818.45,0.00013735,2]
[323644052,1714146712915,-5084.52,0.00013735,2]
[323644053,1714146712927,-1698.98,0.00013735,2]
[323644054,1714146712937,-2638.15,0.00013735,2]
[323644055,1714146712948,-500.0,0.00013735,2]
[323644056,1714146712958,-1991.01,0.00013735,2]
[323644057,1714146712968,-500.0,0.00013735,2]
[323644058,1714146712979,-4070.98,0.00013735,2]
[323644059,1714146712989,-2076.98,0.00013735,2]
[323644060,1714146713000,-1015.78,0.00013735,2]
[323644061,1714146713010,-1017.72,0.00013735,2]
[323644062,1714146713020,-644.82,0.00013735,2]
[323644063,1714146713030,-500.0,0.00013735,2]
[323644064,1714146713040,-5841.05,0.00013735,2]
[323644065,1714146713050,-700.9,0.00013735,2]
[323644066,1714146713060,-2676.49,0.00013735,2]
[323644067,1714146713070,-743.73,0.00013735,2]
[323644068,1714146713081,-1119.16,0.00013735,2]
[323644069,1714146713092,-500.0,0.00013735,2]
[323644070,1714146713105,-3263.92,0.00013735,2]
[323644071,1714146713115,-739.69,0.00013735,2]
[323644072,1714146713125,-2402.81,0.00013735,2]
[323644073,1714146713136,-1345.69,0.00013735,2]
[323644074,1714146713145,-282.778203,0.00013736,2]
[323644075,1714146713155,-282.778198,0.00013736,2]
[323644076,1714146713164,-500.0,0.00013736,2]
[323644077,1714146713174,-558.17,0.00013736,2]
[323644078,1714146713183,-500.0,0.00013736,2]
[323644079,1714146713193,-500.0,0.00013736,2]
[323644080,1714146713203,-500.0,0.00013736,2]
[323644081,1714146713212,-577.08,0.00013736,2]
[323644082,1714146713222,-500.0,0.00013736,2]
[323644083,1714146713233,-500.0,0.00013736,2]
[323644084,1714146713243,-500.0,0.00013736,2]
[323644085,1714146713253,-500.0,0.00013736,2]
[323644086,1714146713263,-500.0,0.00013736,2]
[323644087,1714146713273,-500.0,0.00013736,2]
[323644088,1714146713284,-500.0,0.00013736,2]
[323644089,1714146713294,-703.76,0.00013736,2]
[323644090,1714146713304,-723.08,0.00013736,2]
[323644091,1714146713314,-500.0,0.00013736,2]
[323644092,1714146713324,-500.0,0.00013736,2]
[323644093,1714146713334,-500.0,0.00013736,2]
[323644094,1714146713343,-500.0,0.00013736,2]
[323644095,1714146713354,-571.51,0.00013736,2]
[323644096,1714146713364,-500.0,0.00013736,2]
[323644097,1714146713374,-500.0,0.00013736,2]
[323644098,1714146713384,-500.0,0.00013736,2]
[323644099,1714146713395,-500.0,0.00013736,2]
[323644100,1714146713405,-1700.69,0.00013736,2]
[323644101,1714146713414,-500.0,0.00013736,2]
[323644102,1714146713425,-500.0,0.00013736,2]
[323644103,1714146713435,-500.0,0.00013736,2]
[323644104,1714146713445,-597.04,0.00013736,2]
[323644105,1714146713455,-500.0,0.00013736,2]
[323644106,1714146713465,-500.0,0.00013736,2]
[323644107,1714146713474,-500.0,0.00013736,2]
[323644108,1714146713487,-500.0,0.00013736,2]
[323644109,1714146713497,-980.11,0.00013736,2]
[323644110,1714146713506,-654.78,0.00013736,2]
[323644111,1714146713516,-665.45,0.00013736,2]
[323644112,1714146713527,-500.0,0.00013736,2]
[323644113,1714146713536,-500.0,0.00013736,2]
[323644114,1714146713547,-500.0,0.00013736,2]
[323644115,1714146713557,-500.0,0.00013736,2]
[323644116,1714146713566,-504.62885432,0.00013736,2]
[323644117,1714146713577,-503.18916986,0.00013736,2]
[323644118,1714146713586,-500.0,0.00013736,2]
[323644119,1714146713596,-500.0,0.00013736,2]
[323644120,1714146713606,-500.0,0.00013736,2]
[323644121,1714146713616,-500.0,0.00013736,2]
[323644122,1714146713626,-500.0,0.00013736,2]
[323644123,1714146713636,-507.24,0.00013736,2]
[323644124,1714146713646,-500.0,0.00013736,2]
[323644125,1714146713656,-504.99732312,0.00013736,2]
[323644126,1714146713666,-500.0,0.00013736,2]